fUST/lending_fUST_20241130
["ID","MTS","AMOUNT","RATE_DAILY","PERIOD"]
[343715857,1732904954158,-1424.7698224,0.00021745,2]
[343715858,1732904954178,-5000.0,0.00021965,2]
[343715859,1732904954199,-495.37161333,0.00022,7]
[343715861,1732904968141,-418.81879584,0.00021866,2]
[343715862,1732904968164,-22.35320709,0.00022,7]
[343715863,1732904968185,-194.45647284,0.00022087,2]
[343715864,1732904968207,-250.0,0.00022187,2]
[343715865,1732904968229,-167.76,0.00022491,3]
[343715866,1732904968253,-503.32,0.00022491,3]
[343715867,1732904968276,-43853.34431497,0.00022499,2]
[343715868,1732904968296,-107056.0,0.00022499,2]
[343715869,1732904968317,-498.99718043,0.000225,2]
[343715870,1732904968341,-300.0,0.000225,2]
[343715871,1732904968361,-300.0,0.000225,2]
[343715872,1732904968382,-500.0,0.000225,2]
[343715873,1732904968407,-500.0,0.000225,2]
[343715874,1732904968428,-7035.2873089,0.00022502,2]
[343715875,1732904968450,-5000.0,0.00023076,2]
[343715876,1732904968472,-24900.0,0.00023077,2]
[343715877,1732904968495,-152.0,0.00023297,2]
[343715878,1732904968515,-203.948174,0.00023562,2]
[343715879,1732904968536,-180.05398093,0.00023673,2]
[343715880,1732904968557,-338.7864483,0.00023673,2]
[343715881,1732904968578,-345.10144811,0.00023673,2]
[343715882,1732904968599,-500.45506807,0.00023673,2]
[343715883,1732904968619,-260.18506484,0.00023673,2]
[343715884,1732904968639,-160.16915665,0.00023673,2]
[343715885,1732904968660,-501.6241701,0.00023673,2]
[343715886,1732904968680,-500.0,0.00023673,2]
[343715887,1732904968701,-406.82257977,0.00023673,2]
[343715888,1732904968721,-500.0,0.00023673,2]
[343715889,1732904968743,-366.85966042,0.00023673,2]
[343715890,1732904968767,-500.0,0.00023686,2]
[343715891,1732904968789,-500.0,0.00023686,2]
[343715892,1732904968810,-500.0,0.00023686,2]
[343715893,1732904968833,-500.0,0.00023686,2]
[343715894,1732904968855,-500.0,0.00023686,2]
[343715895,1732904968877,-500.0,0.00023686,2]
[343715896,1732904968898,-500.0,0.00023686,2]
[343715897,1732904968920,-500.0,0.00023686,2]
[343715898,1732904968942,-500.0,0.00023686,2]
[343715899,1732904968963,-500.0,0.00023686,2]
[343715900,1732904968984,-500.0,0.00023686,2]
[343715901,1732904969007,-500.0,0.00023686,2]
[343715902,1732904969029,-500.0,0.00023686,2]
[343715903,1732904969052,-500.0,0.00023686,2]
[343715904,1732904969072,-500.0,0.00023686,2]
[343715905,1732904969093,-500.0,0.00023686,2]
[343715906,1732904969115,-255.93058901,0.00023686,2]
[343715907,1732904969136,-500.0,0.00023686,2]
[343715908,1732904969159,-500.0,0.00023686,2]
[343715909,1732904969181,-500.0,0.00023686,2]
[343715910,1732904969202,-500.0,0.00023686,2]
[343715911,1732904969224,-500.0,0.00023686,2]
[343715912,1732904969248,-500.0,0.00023686,2]
[343715913,1732904969270,-500.0,0.00023686,2]
[343715914,1732904969291,-500.0,0.00023686,2]
[343715915,1732904969313,-500.0,0.00023686,2]
[343715916,1732904969339,-500.0,0.00023686,2]
[343715917,1732904969360,-500.0,0.00023686,2]
[343715918,1732904969383,-500.0,0.00023686,2]
[343715919,1732904969405,-500.0,0.00023686,2]
[343715920,1732904969428,-500.0,0.00023686,2]
[343715921,1732904969451,-500.0,0.00023686,2]
[343715922,1732904969474,-555.98680641,0.00023686,2]
[343715923,1732904969497,-500.0,0.00023686,2]
[343715924,1732904969519,-500.0,0.00023686,2]
[343715925,1732904969540,-500.0,0.00023686,2]
[343715926,1732904969563,-500.0,0.00023686,2]
[343715927,1732904969586,-500.0,0.00023686,2]
[343715928,1732904969607,-500.0,0.00023686,2]
[343715929,1732904969628,-426.78956008,0.00023686,2]
[343715930,1732904969651,-500.0,0.00023686,2]
[343715931,1732904969675,-500.0,0.00023686,2]
[343715932,1732904969697,-500.0,0.00023686,2]
[343715933,1732904969718,-500.0,0.00023686,2]
[343715934,1732904969741,-500.0,0.00023686,2]
[343715935,1732904969764,-179.40312988,0.00023686,2]
[343715987,1732905032676,-300.0,0.00022499,2]
[343715989,1732905032686,-300.0,0.00022499,2]
[343715991,1732905032695,-500.0,0.000225,2]
[343715992,1732905032704,-487.19825189,0.000225,2]
[343716016,1732905038703,-3264.0316297,0.00022805,2]
[343716017,1732905038713,-1014.49280022,0.00023462,2]
[343716018,1732905038723,-1355.05423241,0.00023586,2]
[343716019,1732905038732,-156.9732273,0.00023673,2]
[343716020,1732905038742,-500.0,0.00023673,2]
[343716021,1732905038751,-500.0,0.00023673,2]
[343716022,1732905038760,-500.0,0.00023673,2]
[343716023,1732905038771,-503.13287357,0.00023673,2]
[343716025,1732905038780,-240.3656615,0.00023685,2]
[343716026,1732905038791,-500.0,0.00023685,2]
[343716027,1732905038803,-479.94676848,0.00023685,2]
[343716028,1732905038812,-200.03833469,0.00023685,2]
[343716035,1732905038939,-500.0,0.00023685,2]
[343716036,1732905038950,-627.62152833,0.00023685,2]
[343716037,1732905038960,-500.0,0.00023685,2]
[343716038,1732905038970,-500.0,0.00023685,2]
[343716039,1732905038980,-500.0,0.00023685,2]
[343716040,1732905038989,-500.0,0.00023685,2]
[343716041,1732905038999,-627.62152833,0.00023685,2]
[343716042,1732905039011,-500.0,0.00023685,2]
[343716043,1732905039021,-500.0,0.00023685,2]
[343716044,1732905039031,-500.0,0.00023685,2]
[343716045,1732905039040,-627.62152833,0.00023685,2]
[343716046,1732905039051,-418.4249317,0.00023685,2]
[343716047,1732905039061,-500.0,0.00023685,2]
[343716048,1732905039070,-500.0,0.00023685,2]
[343716049,1732905039079,-500.0,0.00023685,2]
[343716050,1732905039090,-500.0,0.00023685,2]
[343716051,1732905039099,-627.62152833,0.00023685,2]
[343716052,1732905039109,-500.0,0.00023685,2]
[343716053,1732905039118,-500.0,0.00023685,2]
[343716054,1732905039128,-627.62152833,0.00023685,2]
[343716055,1732905039137,-500.0,0.00023685,2]
[343716056,1732905039146,-500.0,0.00023685,2]
[343716057,1732905039156,-627.62152833,0.00023685,2]
[343716058,1732905039166,-500.0,0.00023685,2]
[343716059,1732905039175,-500.0,0.00023685,2]
[343716060,1732905039184,-627.62152833,0.00023685,2]
[343716061,1732905039194,-500.0,0.00023685,2]
[343716062,1732905039204,-500.0,0.00023685,2]
[343716063,1732905039214,-500.0,0.00023685,2]
[343716064,1732905039224,-627.62152833,0.00023685,2]
[343716065,1732905039234,-500.0,0.00023685,2]
[343716066,1732905039243,-500.0,0.00023685,2]
[343716067,1732905039252,-500.0,0.00023685,2]
[343716068,1732905039262,-627.62152833,0.00023685,2]
[343716069,1732905039272,-500.0,0.00023685,2]
[343716070,1732905039281,-500.0,0.00023685,2]
[343716071,1732905039290,-500.0,0.00023685,2]
[343716072,1732905039302,-500.0,0.00023685,2]
[343716073,1732905039311,-627.62152833,0.00023685,2]
[343716074,1732905039321,-500.0,0.00023685,2]
[343716075,1732905039331,-500.0,0.00023685,2]
[343716076,1732905039340,-500.0,0.00023685,2]
[343716077,1732905039350,-500.0,0.00023685,2]
[343716078,1732905039363,-627.62152833,0.00023685,2]
[343716079,1732905039372,-500.0,0.00023685,2]
[343716080,1732905039382,-500.0,0.00023685,2]
[343716081,1732905039392,-500.0,0.00023685,2]
[343716082,1732905039403,-627.62152833,0.00023685,2]
[343716083,1732905039412,-500.0,0.00023685,2]
[343716084,1732905039422,-500.0,0.00023685,2]
[343716085,1732905039433,-627.62152833,0.00023685,2]
[343716086,1732905039443,-500.0,0.00023685,2]
[343716087,1732905039453,-500.0,0.00023685,2]
[343716088,1732905039463,-627.62152833,0.00023685,2]
[343716089,1732905039472,-301.88153908,0.00023685,2]
[343716090,1732905039483,-618.08027436,0.00023685,2]
[343716091,1732905039494,-500.0,0.00023685,2]
[343716092,1732905039505,-500.0,0.00023685,2]
[343716093,1732905039514,-627.62152833,0.00023685,2]
[343716094,1732905039524,-500.0,0.00023685,2]
[343716095,1732905039535,-500.0,0.00023685,2]
[343716096,1732905039544,-500.0,0.00023685,2]
[343716097,1732905039555,-500.0,0.00023685,2]
[343716098,1732905039565,-627.62152833,0.00023685,2]
[343716099,1732905039575,-500.0,0.00023685,2]
[343716100,1732905039584,-500.0,0.00023685,2]
[343716101,1732905039594,-500.0,0.00023685,2]
[343716102,1732905039604,-627.62152833,0.00023685,2]
[343716103,1732905039614,-500.0,0.00023685,2]
[343716104,1732905039623,-500.0,0.00023685,2]
[343716105,1732905039633,-500.0,0.00023685,2]
[343716106,1732905039642,-500.0,0.00023685,2]
[343716107,1732905039651,-500.0,0.00023685,2]
[343716108,1732905039667,-627.62152833,0.00023685,2]
[343716109,1732905039677,-500.0,0.00023685,2]
[343716110,1732905039687,-500.0,0.00023685,2]
[343716111,1732905039696,-500.0,0.00023685,2]
[343716112,1732905039706,-627.62152833,0.00023685,2]
[343716113,1732905039715,-500.0,0.00023685,2]
[343716114,1732905039725,-539.6616403,0.00023685,2]
[343716115,1732905039734,-500.0,0.00023685,2]
[343716116,1732905039744,-627.62152833,0.00023685,2]
[343716117,1732905039753,-500.0,0.00023685,2]
[343716118,1732905039763,-500.0,0.00023685,2]
[343716119,1732905039773,-627.62152833,0.00023685,2]
[343716120,1732905039783,-500.0,0.00023685,2]
[343716121,1732905039792,-500.0,0.00023685,2]
[343716122,1732905039802,-627.62152833,0.00023685,2]
[343716123,1732905039811,-500.0,0.00023685,2]
[343716124,1732905039821,-500.0,0.00023685,2]
[343716125,1732905039830,-627.62152833,0.00023685,2]
[343716126,1732905039839,-500.0,0.00023685,2]
[343716127,1732905039848,-500.0,0.00023685,2]
[343716128,1732905039858,-500.0,0.00023685,2]
[343716129,1732905039867,-627.62152833,0.00023685,2]
[343716130,1732905039876,-500.0,0.00023685,2]
[343716131,1732905039886,-500.0,0.00023685,2]
[343716132,1732905039895,-627.62152833,0.00023685,2]
[343716133,1732905039905,-500.0,0.00023685,2]
[343716134,1732905039915,-500.0,0.00023685,2]
[343716135,1732905039925,-627.62152833,0.00023685,2]
[343716137,1732905039936,-500.0,0.00023685,2]
[343716139,1732905039945,-500.0,0.00023685,2]
[343716141,1732905039954,-627.62152833,0.00023685,2]
[343716142,1732905039964,-500.0,0.00023685,2]
[343716143,1732905039974,-500.0,0.00023685,2]
[343716144,1732905039982,-627.62152833,0.00023685,2]
[343716145,1732905039992,-627.62152833,0.00023685,2]
[343716146,1732905040002,-500.0,0.00023685,2]
[343716147,1732905040011,-500.0,0.00023685,2]
[343716148,1732905040020,-500.0,0.00023685,2]
[343716149,1732905040029,-500.0,0.00023685,2]
[343716150,1732905040039,-627.62152833,0.00023685,2]
[343716151,1732905040051,-500.0,0.00023685,2]
[343716152,1732905040062,-627.62152833,0.00023685,2]
[343716153,1732905040071,-500.0,0.00023685,2]
[343716154,1732905040081,-500.0,0.00023685,2]
[343716155,1732905040091,-627.62152833,0.00023685,2]
[343716156,1732905040102,-500.0,0.00023685,2]
[343716157,1732905040112,-627.62152833,0.00023685,2]
[343716158,1732905040122,-500.0,0.00023685,2]
[343716159,1732905040132,-627.62152833,0.00023685,2]
[343716160,1732905040143,-500.0,0.00023685,2]
[343716161,1732905040153,-627.62152833,0.00023685,2]
[343716162,1732905040163,-627.62152833,0.00023685,2]
[343716163,1732905040172,-500.0,0.00023685,2]
[343716164,1732905040182,-287.88093332,0.00023685,2]
[343716166,1732905040267,-339.74059501,0.00023685,2]
[343716167,1732905040277,-500.0,0.00023685,2]
[343716168,1732905040287,-627.62152833,0.00023685,2]
[343716169,1732905040296,-500.0,0.00023685,2]
[343716170,1732905040308,-627.62152833,0.00023685,2]
[343716171,1732905040317,-500.0,0.00023685,2]
[343716172,1732905040326,-627.62152833,0.00023685,2]
[343716173,1732905040336,-500.0,0.00023685,2]
[343716174,1732905040345,-627.62152833,0.00023685,2]
[343716175,1732905040356,-500.0,0.00023685,2]
[343716176,1732905040366,-500.0,0.00023685,2]
[343716177,1732905040375,-627.62152833,0.00023685,2]
[343716178,1732905040385,-627.62152833,0.00023685,2]
[343716179,1732905040395,-627.62152833,0.00023685,2]
[343716180,1732905040406,-627.62152833,0.00023685,2]
[343716181,1732905040415,-627.62152833,0.00023685,2]
[343716182,1732905040424,-627.62152833,0.00023685,2]
[343716183,1732905040436,-627.62152833,0.00023685,2]
[343716184,1732905040446,-627.62152833,0.00023685,2]
[343716185,1732905040456,-627.62152833,0.00023685,2]
[343716186,1732905040465,-1360.99813417,0.00023685,2]
[343716187,1732905040475,-1449.1981005,0.00024,2]
[343716188,1732905040485,-168.299725,0.00024109,2]
[343716189,1732905040495,-500.0,0.00024221,2]
[343716190,1732905040504,-1000.0,0.00024221,2]
[343716192,1732905040513,-420.0,0.00024436,2]
[343716193,1732905040523,-1355.05423234,0.00024551,2]
[343716194,1732905040533,-420.0,0.00024749,2]
[343716195,1732905040542,-1014.49280021,0.00024763,2]
[343716196,1732905040552,-40000.00000001,0.00024837,2]
[343716197,1732905040562,-164.999,0.00024962,8]
[343716198,1732905040572,-9180.68904564,0.00024979,2]
[343716199,1732905040583,-1752.77,0.0002499,10]
[343716200,1732905040593,-335.52,0.0002499,3]
[343716201,1732905040603,-302.66710251,0.00025,2]
[343716202,1732905040612,-590.50958874,0.00025,7]
[343716203,1732905040622,-1093.57417345,0.00025,2]
[343716204,1732905040632,-42717.88412741,0.00025,2]
[343716205,1732905040818,-33809.46543067,0.00025,2]
[343716206,1732905040828,-72296.20004033,0.0002509,2]
[343716207,1732905040837,-302.66710251,0.0002525,2]
[343716208,1732905040847,-9180.68904564,0.00025267,2]
[343716209,1732905040856,-203.948174,0.00025305,2]
[343716210,1732905040866,-302.66710251,0.000255,2]
[343716211,1732905040876,-4057.01663061,0.00025534,2]
[343716219,1732905043733,-477.98046288,0.00025516,2]
[343716241,1732905186949,5554.0,0.0002,2]
[343716242,1732905187275,2777.0,0.0002,2]
[343716243,1732905187599,2777.0,0.0002,2]
[343716244,1732905188979,2777.0,0.0002,2]
[343716245,1732905189160,2777.0,0.0002,2]
[343716251,1732905313185,163.799532,0.00013973,2]
[343716316,1732905947183,-257.58826757,0.000219,2]
[343716317,1732905947204,-1104.77726065,0.00021941,2]
[343716318,1732905947224,-185.0,0.00022,2]
[343716319,1732905947244,-300.0,0.00022009,2]
[343716320,1732905947264,-300.0,0.00022009,2]
[343716321,1732905947283,-11067.0,0.00022009,2]
[343716322,1732905947308,-24900.0,0.00022012,2]
[343716323,1732905947328,-172.248201,0.00022041,2]
[343716324,1732905947347,-185.0,0.00022192,2]
[343716325,1732905947366,-287.8766847,0.00022397,2]
[343716326,1732905947386,-185.0,0.00023014,2]
[343716327,1732905947405,-1104.77726059,0.00023141,2]
[343716328,1732905947425,-907.33208944,0.00023523,2]
[343716329,1732905947446,-500.0,0.00023523,2]
[343716330,1732905947465,-477.98683768,0.00023523,2]
[343716331,1732905947486,-500.0,0.00023523,2]
[343716332,1732905947507,-500.0,0.00023523,2]
[343716333,1732905947530,-500.0,0.00023523,2]
[343716334,1732905947554,-500.0,0.00023523,2]
[343716335,1732905947573,-500.0,0.00023523,2]
[343716336,1732905947596,-500.0,0.00023523,2]
[343716337,1732905947619,-500.0,0.00023523,2]
[343716338,1732905947643,-500.0,0.00023523,2]
[343716339,1732905947665,-500.0,0.00023523,2]
[343716340,1732905947687,-411.80802744,0.00023523,2]
[343716341,1732905947710,-500.0,0.00023523,2]
[343716342,1732905947732,-500.0,0.00023523,2]
[343716343,1732905947753,-500.0,0.00023523,2]
[343716344,1732905947775,-500.0,0.00023523,2]
[343716345,1732905947799,-500.0,0.00023523,2]
[343716346,1732905947822,-500.0,0.00023523,2]
[343716347,1732905947844,-500.0,0.00023523,2]
[343716348,1732905947867,-500.0,0.00023523,2]
[343716349,1732905947890,-500.0,0.00023523,2]
[343716350,1732905948016,-500.0,0.00023523,2]
[343716351,1732905948069,-500.0,0.00023523,2]
[343716352,1732905948090,-300.0,0.00023523,2]
[343716353,1732905948115,-500.0,0.00023523,2]
[343716354,1732905948137,-500.0,0.00023523,2]
[343716355,1732905948159,-500.0,0.00023523,2]
[343716356,1732905948182,-500.0,0.00023523,2]
[343716357,1732905948204,-500.0,0.00023523,2]
[343716358,1732905948226,-500.0,0.00023523,2]
[343716359,1732905948247,-500.0,0.00023523,2]
[343716360,1732905948270,-500.0,0.00023523,2]
[343716361,1732905948290,-500.0,0.00023523,2]
[343716362,1732905948313,-500.0,0.00023523,2]
[343716363,1732905948335,-500.0,0.00023523,2]
[343716364,1732905948356,-500.0,0.00023523,2]
[343716365,1732905948377,-500.0,0.00023523,2]
[343716366,1732905948398,-500.0,0.00023523,2]
[343716367,1732905948420,-500.0,0.00023523,2]
[343716368,1732905948441,-500.0,0.00023523,2]
[343716369,1732905948462,-500.0,0.00023523,2]
[343716370,1732905948483,-500.0,0.00023523,2]
[343716371,1732905948505,-500.0,0.00023523,2]
[343716372,1732905948527,-500.0,0.00023523,2]
[343716373,1732905948550,-192.96877507,0.00023523,2]
[343716374,1732905948572,-500.0,0.00023523,2]
[343716375,1732905948594,-500.0,0.00023523,2]
[343716376,1732905948615,-500.0,0.00023523,2]
[343716377,1732905948638,-500.0,0.00023523,2]
[343716378,1732905948660,-500.0,0.00023523,2]
[343716379,1732905948683,-500.0,0.00023523,2]
[343716380,1732905948706,-500.0,0.00023523,2]
[343716381,1732905948728,-500.0,0.00023523,2]
[343716382,1732905948749,-500.0,0.00023523,2]
[343716383,1732905948771,-500.0,0.00023523,2]
[343716384,1732905948793,-500.0,0.00023523,2]
[343716385,1732905948816,-500.0,0.00023523,2]
[343716386,1732905948838,-500.0,0.00023523,2]
[343716387,1732905948861,-500.0,0.00023523,2]
[343716388,1732905948883,-500.0,0.00023523,2]
[343716389,1732905948905,-500.0,0.00023523,2]
[343716390,1732905948928,-500.0,0.00023523,2]
[343716391,1732905948950,-500.0,0.00023523,2]
[343716392,1732905948973,-398.29183576,0.00023523,2]
[343716393,1732905948996,-500.0,0.00023523,2]
[343716394,1732905949018,-500.0,0.00023523,2]
[343716395,1732905949042,-500.0,0.00023523,2]
[343716396,1732905949066,-500.0,0.00023523,2]
[343716397,1732905949088,-500.0,0.00023523,2]
[343716398,1732905949110,-500.0,0.00023523,2]
[343716399,1732905949132,-500.0,0.00023523,2]
[343716400,1732905949153,-500.0,0.00023523,2]
[343716401,1732905949175,-500.0,0.00023523,2]
[343716402,1732905949196,-500.0,0.00023523,2]
[343716403,1732905949218,-500.0,0.00023523,2]
[343716404,1732905949240,-469.29687751,0.00023523,2]
[343716405,1732905949262,-500.0,0.00023523,2]
[343716406,1732905949283,-500.0,0.00023523,2]
[343716407,1732905949306,-500.0,0.00023523,2]
[343716408,1732905949327,-500.0,0.00023523,2]
[343716409,1732905949348,-500.0,0.00023523,2]
[343716410,1732905949369,-500.0,0.00023523,2]
[343716411,1732905949391,-500.0,0.00023523,2]
[343716412,1732905949411,-5000.0,0.00023527,2]
[343716413,1732905949433,-4722.29479599,0.00023527,2]
[343716414,1732905949454,-203.948174,0.00023562,2]
[343716415,1732905949473,-501.2213572,0.00023573,2]
[343716416,1732905949494,-500.0,0.00023573,2]
[343716417,1732905949514,-160.0,0.00023573,2]
[343716418,1732905949534,-500.0,0.000236,2]
[343716419,1732905949556,-200.21170557,0.000236,2]
[343716420,1732905949577,-420.0,0.00023916,2]
[343716421,1732905949597,-189.0,0.00024164,2]
[343716422,1732905949618,-420.0,0.0002421,2]
[343716423,1732905949643,-1104.77726059,0.00024341,2]
[343716424,1732905949664,-164.999,0.00024957,8]
[343716425,1732905949685,-168.25596305,0.00025114,2]
[343716426,1732905949706,-7152.18073033,0.00025115,2]
[343716427,1732905949727,-963.9,0.00025227,10]
[343716428,1732905949747,-615.599253,0.00025267,7]
[343716429,1732905949768,-615.599253,0.00025267,7]
[343716430,1732905949789,-7152.18073034,0.00025267,2]
[343716431,1732905949809,-185.0,0.00025775,2]
[343716432,1732905949830,-587.0,0.00025989,2]
[343716433,1732905949850,-5330.18628798,0.00026,2]
[343716434,1732905949870,-500.0,0.00026566,7]
[343716435,1732905949890,-587.0,0.00026631,2]
[343716436,1732905949910,-185.0,0.00027386,2]
[343716437,1732905949930,-500.0,0.00027397,2]
[343716438,1732905949949,-185.0,0.00027616,2]
[343716439,1732905949969,-2466.12356789,0.00027669,2]
[343716440,1732905949988,-62.79389172,0.00027669,2]
[343716441,1732905963825,165.813023,0.00013973,2]
[343716442,1732906040097,-4010.22464908,0.00022,2]
[343716444,1732906166111,-3492.39415486,0.00021562,5]
[343716445,1732906166133,-2510.7498229,0.0002178,5]
[343716446,1732906166155,-24.83602224,0.00022,2]
[343716447,1732906171177,-41.93932868,0.00022,2]
[343716448,1732906171200,-146.60112663,0.00022,2]
[343716549,1732906239435,-55.39887337,0.00022,2]
[343716551,1732906239444,-203.0,0.00023014,2]
[343716553,1732906239454,-168.299725,0.00026423,2]
[343716555,1732906239463,-423.0757369,0.00026634,2]
[343716557,1732906239472,-500.0,0.00027397,2]
[343716559,1732906239481,-302.66710252,0.00027503,6]
[343716561,1732906239491,-300.0,0.00027527,2]
[343716563,1732906239500,-300.0,0.00027527,2]
[343716565,1732906239510,-10437.0,0.00027527,2]
[343716567,1732906239519,-237.22610828,0.00027669,2]
[343716569,1732906239528,-2055.10297324,0.00027669,2]
[343716571,1732906239538,-2500.0,0.00027878,2]
[343716573,1732906239549,-150.0,0.00027952,2]
[343716575,1732906239559,-9180.68904564,0.00028014,2]
[343716577,1732906239569,-151.0,0.00028107,6]
[343716579,1732906239579,-44.68841157,0.00028165,2]
[343716664,1732906240774,-486.31158843,0.00028165,2]
[343716665,1732906240785,-472.61426236,0.00028165,2]
[343716673,1732906244346,-574.1273264,0.00028165,2]
[343716674,1732906244424,-1330.25841124,0.00028165,2]
[343716675,1732906244434,-2178.0,0.00028165,2]
[343716676,1732906244444,-1621.455,0.00028165,2]
[343716677,1732906244454,-1000.0,0.000282,2]
[343716678,1732906244465,-881.5,0.00028349,15]
[343716679,1732906244474,-212.42311416,0.00028399,2]
[343716680,1732906244484,-500.0,0.00028399,2]
[343716681,1732906244496,-426.36636529,0.00028399,2]
[343716682,1732906244507,-73.63363471,0.00028399,2]
[343716683,1732906244516,-500.0,0.00028399,2]
[343716684,1732906244526,-500.0,0.00028399,2]
[343716685,1732906244535,-500.0,0.00028399,2]
[343716686,1732906244545,-500.0,0.00028399,2]
[343716687,1732906244556,-500.0,0.00028399,2]
[343716688,1732906244565,-500.0,0.00028399,2]
[343716689,1732906244574,-500.0,0.00028399,2]
[343716690,1732906244583,-76.88783236,0.00028399,2]
[343716694,1732906245684,-423.11216764,0.00028399,2]
[343716695,1732906245694,-500.0,0.00028399,2]
[343716696,1732906245707,-619.82918358,0.00028399,2]
[343716697,1732906245717,-500.0,0.00028399,2]
[343716698,1732906245727,-500.0,0.00028399,2]
[343716699,1732906245737,-500.0,0.00028399,2]
[343716700,1732906245748,-500.0,0.00028399,2]
[343716701,1732906245757,-500.0,0.00028399,2]
[343716702,1732906245767,-545.86810472,0.00028399,2]
[343716704,1732906245777,-500.0,0.00028399,2]
[343716706,1732906245787,-500.0,0.00028399,2]
[343716707,1732906245796,-500.0,0.00028399,2]
[343716708,1732906245807,-500.0,0.00028399,2]
[343716709,1732906245816,-500.0,0.00028399,2]
[343716710,1732906245825,-500.0,0.00028399,2]
[343716711,1732906245835,-500.0,0.00028399,2]
[343716712,1732906245845,-300.0,0.000284,2]
[343716713,1732906245854,-151.0,0.000284,20]
[343716714,1732906245865,-151.0,0.00028434,6]
[343716715,1732906245874,-690.48578793,0.00028527,2]
[343716716,1732906245883,-1000.0,0.00028592,2]
[343716717,1732906245894,-3000.0,0.000286,2]
[343716718,1732906245904,-300.224466,0.000286,10]
[343716719,1732906245914,-1058.55410435,0.000286,2]
[343716720,1732906245924,-3000.0,0.0002861,2]
[343716721,1732906245933,-3000.0,0.0002862,2]
[343716722,1732906245943,-1000.0,0.00028627,2]
[343716723,1732906245954,-3000.0,0.0002863,2]
[343716724,1732906245964,-640.72947041,0.0002864,2]
[343716727,1732906246666,-1712.58581103,0.00028164,2]
[343716728,1732906246676,-2359.27052959,0.0002864,2]
[343716730,1732906246685,-3000.0,0.0002865,2]
[343716731,1732906246695,-3000.0,0.0002866,2]
[343716732,1732906246707,-608.69568015,0.0002866,2]
[343716733,1732906246717,-608.69568012,0.00028662,2]
[343716734,1732906246726,-608.69568012,0.00028664,2]
[343716735,1732906246736,-608.69568012,0.00028665,2]
[343716736,1732906246746,-608.69568012,0.00028667,2]
[343716737,1732906246757,-364.60444513,0.00028667,2]
[343716738,1732906246767,-666.0,0.00028667,2]
[343716739,1732906246776,-3000.0,0.0002867,2]
[343716741,1732906246787,-500.0,0.00028673,5]
[343716742,1732906246797,-500.13604431,0.00028673,5]
[343716743,1732906246809,-559.63896627,0.00028673,5]
[343716744,1732906246819,-601.54523118,0.00028673,5]
[343716745,1732906246829,-500.0,0.00028673,5]
[343716746,1732906246839,-500.0,0.00028673,5]
[343716747,1732906246849,-615.599253,0.00028673,7]
[343716748,1732906246859,-615.599253,0.00028673,7]
[343716749,1732906246868,-3000.0,0.0002868,2]
[343716750,1732906246878,-3000.0,0.0002869,2]
[343716751,1732906246888,-335.52,0.0002869,3]
[343716752,1732906246897,-936.86,0.0002869,10]
[343716753,1732906246906,-1786.53,0.0002869,10]
[343716754,1732906246915,-1488.77,0.0002869,10]
[343716755,1732906246925,-13488.03745241,0.000287,2]
[343716756,1732906246935,-13488.03745239,0.000287,2]
[343716757,1732906246945,-13488.03745239,0.000287,2]
[343716758,1732906246954,-13488.03745239,0.000287,2]